{"text_format":"1","workbook":"xlsx","n_sheets":3,"sheets":["Quiz","Feuil4","Portrait"],"not_rendered":{"charts":0,"images":85,"macros":1,"external_links":0,"defined_names":2,"comments":0,"pivot_tables":0},"unopened":[],"bounds":{"document_bytes":16777216,"sheet_cells":100000,"rows_first":2000,"rows_last":500,"rows_between":2000,"halvings":0,"cell_chars":16384,"cell_head_chars":4096},"cells_cut":0,"cells_raw":0,"read":"whole","date_system":"1900"}

{"sheet":"Quiz","index":0,"n_rows":38,"n_cols":11,"rows_kept":38,"cut":false,"hidden":false,"merged":[[28,1,28,2],[29,1,29,8],[30,1,30,8],[31,1,31,8],[27,1,27,2],[2,9,4,10],[2,0,2,3],[3,0,3,3],[22,5,24,5],[22,6,25,7],[6,1,6,2],[6,6,6,7],[19,6,19,7],[19,1,19,2],[14,4,15,4],[6,9,17,10],[22,1,23,3],[24,1,25,3]]}
[null,null,null,null,null,null,null,null,null,"Zoom :",100]
[null,null,null,null,{"$f":"Feuil4!J2","v":"Yunus Muhammad"}]
[{"$f":"(IF(Feuil4!K16=0,\"Cliquer sur 'Tirage' ou sur ? \",(IF(Feuil4!K13=1,\"Cliquer dans la zone 'Tirage'  \",\"Cliquer sur la bulle qui convient \"))))","v":"Cliquer sur 'Tirage' ou sur ? "},null,null,null,null,null,null,null,null,{"$f":"IF(Feuil4!K16=0,\"Ce QCM est un complément à Quiz_Economistes.xlsm\",\"\")","v":"Ce QCM est un complément à Quiz_Economistes.xlsm"}]
["Entre guillemets, des citations."]
[]
[]
[null,{"$f":"Feuil4!J1","v":"Colbert Jean-Baptiste"},null,null,null,null,{"$f":"Feuil4!J3","v":"Kondratiev Nikolaï"},null,null,{"$f":"IF(Feuil4!K16=0,\"A partir du portrait d'un économiste célèbre il s'agit de trouver la citation ou l'affirmation qui lui convient.                                          Bon jeu ! \",\"\")","v":"A partir du portrait d'un économiste célèbre il s'agit de trouver la citation ou l'affirmation qui lui convient.                                          Bon jeu ! "}]
[]
[]
[]
[]
[]
[]
[]
[null,null,null,null,{"$f":"Feuil4!J10","v":""}]
[]
[]
[]
[]
[null,{"$f":"Feuil4!J6","v":"Ricardo David"},null,null,null,null,{"$f":"Feuil4!J4","v":"Gresham Thomas"}]
[]
[]
[null,{"$f":"IF(Feuil4!K16=0,\"\",IF(Feuil4!K13=0,\"NON\",\"\"))","v":""},null,null,null,{"$f":"IF(G23=\"OUI\",\"<\",\"\")","v":""},{"$f":"IF(Feuil4!K16=0,\"\",IF(Feuil4!K13=1,\"OUI\",\"\"))","v":""}]
[]
[null,{"$f":"IF(Feuil4!K16=0,\" Nouvelle partie  et  résultats  ci-dessous \",IF(Feuil4!K13=0,\"Cherche encore !\",\"\"))","v":" Nouvelle partie  et  résultats  ci-dessous "}]
[null,null,null,null,null,{"$f":"IF(Feuil4!K16=0,\"\",IF(Feuil4!K13=1,\"Bravo !\",\"\"))","v":""}]
[]
[null,null,null,null,{"$f":"Feuil4!J5","v":"Smith Adam"}]
[]
[{"$f":"\"Questions : \"&Feuil4!K16","v":"Questions : 0"},{"$f":"REPT(\"n\",Feuil4!K16)","v":""}]
[{"$f":"\"Réponses : \"& Feuil4!K18","v":"Réponses : 0"},{"$f":"REPT(\"n\",Feuil4!K18)","v":""}]
[{"$f":"\"Justes : \"&Feuil4!K17","v":"Justes : 0"},{"$f":"REPT(\"n\",Feuil4!K17)","v":""}]
[]
[]
[]
[]
[]
["© Y. Péguiron - infodidac.ch - 2021"]

{"sheet":"Feuil4","index":1,"n_rows":42,"n_cols":13,"rows_kept":42,"cut":false,"hidden":true,"merged":[]}
[1,"Gresham Thomas","1519 Londres - 1579","Commerçant et banquier anglais - Spécialise monétaire","Grand financier de la Couronne. Ma loi :  Lorsque circulent dans un pays deux monnaies, la mauvaise chasse la bonne. Ma gestion des équilibres financiers a sauvé la £.","\"Lorsque circulent deux monnaies, l'une  bonne et l'autre mauvaise, la mauvaise chasse la bonne.\"","Fondateur du \"Royal Exchange\" (Bourse des marchandises)",null,1,{"$f":"VLOOKUP(K1,Data,2)","v":"Colbert Jean-Baptiste"},2,{"$f":"VLOOKUP(K1,Data,M1)","v":"\"L'imposition consiste à plumer l'oie pour obtenir le plus possible de plumes avec  le moins possible de cris.\""},6]
[2,"Colbert Jean-Baptiste","1619 Reims - 1683 Paris","Contrôleur général des finances","La puissance d'un royaume se définit par la richesse de son souverain.  L'art de l'imposition consiste à plumer l'oie pour obtenir le plus possible de plumes avec  le moins possible de cris.","\"L'imposition consiste à plumer l'oie pour obtenir le plus possible de plumes avec  le moins possible de cris.\"","Je mets en place le mercantilisme",null,2,"Yunus Muhammad",37,"Surnommé le « banquier des pauvres »  ou « l'apôtre du microcrédit »",7]
[3,"Quesney François","1694 Méré - Versailles 1774 ","Chirurgien puis économiste français"," Pauvres paysans, pauvre royaume   -   Nul travail ne peut être effectué sans des avances préalables. L'enfant a reçu la nourriture de ses parents avant de la chercher. Participe à la fondation des Physiocrates.","\"Nul travail ne peut être fait sans des avances préalables. L'enfant reçoit la nourriture avant de la chercher. \"","On me doit le premier schéma d'un circuit économique.",null,3,"Kondratiev Nikolaï",22,"Ma théorie des cycles économiques m’a rendu célèbre.",7]
[4,"Smith Adam","1723 Écosse - Édimbourg 1790","Économiste britannique","Aucune société ne peut prospérer et être heureuse, dans laquelle la plus grande partie des membres est pauvre et misérable. Je prône la valeur, la spécialisation et la division du travail.","\"Une société ne peut prospérer et être heureuse, si la plus grande partie des membres est pauvre et misérable.\"","L'État n'a pas à intervenir. La main invisible équilibre le marché.",null,4,"Gresham Thomas",1,"\"Lorsque circulent deux monnaies, l'une  bonne et l'autre mauvaise, la mauvaise chasse la bonne.\"",6]
[5,"de Saint-Simon Henri","1760 Paris - Paris 1854","Économiste et philosophe français","Mon père est Duc, je suis Comte. Certains me définissent comme \"le dernier des gentilshommes et le premier des socialistes\" peut-être pour ma déclaration : \"La société est structurée en deux grandes catégories: les abeilles et les frelons.\"","\"La société est structurée en deux grandes catégories : les abeilles et les frelons\"","Il faut mettre fin au régime des rentes et de l'héritage.",null,5,"Smith Adam",4,"L'État n'a pas à intervenir. La main invisible équilibre le marché.",7]
[6,"Malthus Thomas Robert","1766 Surrey - Claverton, 1834","Économiste britannique","Pasteur anglican préoccupé par le nombre important de pauvres dans la société anglaise, j’estime que la cause en réside dans le fait que la population croît plus vite que la production. ","\"La difficulté n'est pas de faire des enfants, mais de les nourrir.\"","La pauvreté réside dans le fait que la population croît plus vite que la production.","x",6,"Ricardo David",8,"On me doit la théorie des avantages comparatifs",7]
[7,"Say Jean-Baptiste","1767 Lyon  - Paris 1832","Économiste français","Connu pour mon \"Catéchisme d'économie politique\", je suis attaché au \"libre-échange\". On n’est jamais mieux gouverné que lorsqu’il n’y a pas de gouvernement. L'offre est le moteur de l'économie. La valeur d'un bien est déterminée par son utilité.","\"On n’est jamais mieux gouverné que lorsqu’il n’y a pas de gouvernement.\"","La «loi des débouchés » porte mon mon. Elle formule que l'offre crée sa propre demande."]
[8,"Ricardo David","1772 Londres - Gloucestershire, 1823","Économiste britannique","On me considère comme le père du libéralisme. Les salaires doivent être livrés à la concurrence franche et libre du marché, comme tout autre contrat, et n'être jamais entravés par l'intervention du Gouverneur.","\"Les salaires doivent être livrés à la concurrence franche et libre du marché.\"","On me doit la théorie des avantages comparatifs"]
[9,"de Sismondi Jean-Léonard","1773 Genève  - id. 1842","Historien et économiste suisse","Je critique la division du travail de Smith qui fait perdre à l’homme son intelligence et sa santé. La concurrence est destructrice..Ce n'est point le perfectionnement des machines qui est la vraie calamité ; c'est le partage injuste que nous faisons de leur produit.","\"La calamité, ce ne sont pas les machines, mais le partage injuste que nous faisons de leur produit.\"","Précurseur du courant social-démocrate"]
[10,"Bastiat Frédéric","1801 Bayonne - Rome 1850","Philosophe, magistrat et économistre français","Je suis un adversaire du socialisme et du protectionnisme… L'État, c'est la grande fiction par laquelle tout le monde s'efforce de vivre aux dépens de tout le monde.","\"L'État, c'est la grande fiction par laquelle tout le monde s'efforce de vivre aux dépens de tout le monde.\"","Je me suis rendu célèbre en dénonçant les sophismes des économistes",null,"Elu:",{"$f":"VLOOKUP(K10,Data,2)","v":""},41]
[11,"Mill John Stuart","1806 Londres - Avignon 1873","Philosophe et économiste britannique","Libéral, je peux envisager l'intervention de l'État et la création de coopératives. Je propose même une taxe sur l'augmentation des rentes foncières. Dans une croissance raisonnée, il faut aussi penser au développement durable. Précurseur du féminisme, je me tourne, en fin de vie, vers le socialisme.","\"Les conservateurs ne sont pas forcément stupides, mais la plupart des gens stupides sont conservateurs.\"","Partisan de l'associationnisme, je propose le raisonnement inductif en économie.",null,"Rép. Juste",null,{"$f":"MATCH(K10,K1:K6,0)","v":{"$error":"#N/A"}}]
[12,"Proudhon Pierre-Joseph","1809  Besançon - Paris 1865","Économiste et philosophe français","Je me réclame \"anarchiste\". Je renvoie communisme et capitalisme dos à dos. Le socialisme est une utopie et le capitalisme n'est que contradictions."," \"Concurrence et profit : l'un est la guerre, l'autre le butin.  -   Il faut socialiser la liberté individuelle.\"","Je rends célèbre la formule \"La propriété, c'est le vol\"",null,"Rèp. Joueur",null,6]
[13,"Marx Karl","1818 Trèves - Londres 1883","Philosophe, économiste et homme politique allemand","Matérialiste, athée et progressiste, j’élabore mon approche des faits historiques et sociaux. Je fais de la lutte des classes un principe général et j’accorde au prolétariat un rôle émancipateur de l’humanité.","\"Les prolétaires n'ont rien à perdre que leurs chaînes. Ils ont un monde à gagner. Unissez-vous !\"\"","Mon objectif :  abolition du capitalisme et fin de l'exploitation du travail par le capital.",null,null,"juste ou faux",{"$f":"IF(K16=0,\"\",IF(K14=0,2,IF(K11=K12,1,0)))","v":""}]
[14,"Walras Léon","1834 Évreux - Clarens, Suisse, 1910","Économiste français","J’ai mis en place un modèle de l'équilibre général dans lequel je montre qu'il existe un système de prix relatif et flexible qui permet d'assurer un équilibre offre / demande. J'avance la notion de valeur utilité :  l'utilisé et non la quantité de travail fonde la valeur d'un bien."," \"Les prix ou les valeurs d’échange sont égaux aux inverses des quantités de marchandises échangées.\"","Connu pour \"l'équilibre général\" j’ai contribué à la méthode mathématique et au calcul à la marge.",null,null,"Juste ou faux début",0]
[15,"Marshall Alfred","1842 Londres - Cambridge 1924","Économiste britannique","Premier représentant de l'école de Cambridge, j’ai tenté de concilier les différentes théories de la valeur. J’ai mis en place des outils analytiques pour l’offre et la demande, pour l’analyse des surplus du consommateur et du producteur.","\"La production d’un pays peut s’accroître  proportionnellement à l’augmentation du chiffre de sa population.\"","Méthode pour calculer l’utilité marginale"]
[16,"Pareto Vilfredo","1848 Paris - Céligny, Suisse 1923","Économiste et sociologue italien","Certains collègues postulent que chaque consommateur est rationnel. Je m'en distancie en prétendant je contraire. Je suis contre l'impôt sur le revenu, car on commencera avec un taux progressif fort supportable, et puis, chaque année, à l'occasion du budget, on l'augmentera.","\"On commencera avec un impôt progressif fort supportable, et puis chaque année on l'augmentera.\"","J’ai repris la théorie marginaliste de  Walras et approfondi la notion d'optimum.",null,null,"Nbtir",0]
[17,"Bernstein Eduard","1850 Schöneberg - Berlin 1932","Philosophe et homme politique allemand","La lutte politique a la tendance d'aboutir au radicalisme plutôt qu'au socialisme et plutôt à la corruption des masses qu'à leur éducation morale.","\"La lutte politique aboutit au radicalisme et à la corruption des masses  plutôt qu'au socialisme.\"","Mon ambition est d’adapter le marxisme à une réalité économique et sociale.",null,null,"Nbjuste",0]
[18,"Rist Charles","1874 Lausanne - Versailles 1955","Économiste français","Je suis un partisan de l'économie libérale. Après la Seconde Guerre mondiale, je m’oppose au système de Bretton Woods en soutenant qu'il aurait mieux valu baser le système sur l'or plutôt que sur le dollar convertible en or. ","\"Une monnaie de papier est une créance sur un inconnu, un pays dont personne ne peut prévoir les décisions.\"","Pour moi, l'or n'est pas une monnaie parfaite, c'est la moins mauvaise.",null,null,"nbreponse",0]
[19,"Keynes John Maynard","1883 Cambridge - Sussex, 1946","Économiste britannique","Auteur de la \"Théorie générale de l'emploi, de l'intérêt et de la monnaie\", j’ai prôné une relance de la consommation, une baisse du taux d'intérêt et un accroissement des investissements publics pour assurer le plein-emploi.","\"L'économiste doit étudier le présent à la lumière du passé afin d'éclairer le futur.\"","L'instabilité chronique du capitalisme nécessite l'intervention de l'État."]
[20,"Schumpeter Joseph","1883 Moravie - Taconic,Connecticut 1950","Économiste autrichien.","La dynamique du capitalisme engendre l'innovation qui est le moteur de l'évolution économique, c'est elle qui crée de la croissance. Je suis pessimiste sur l’évolution du capitalisme que j’estime voué à disparaître pour des raisons sociales et politiques.","\"On ne peut devenir entrepreneur qu’en devenant auparavant débiteur.  De l'audace,  toujours de l'audace !","Auteur des théories sur l'innovation et la destruction créatrice."]
[21,"Monnet Jean","1888 Cognac - Yvelines, 1979 ","Administrateur et homme politique français","J’ai alterné la gestion d'entreprises privées et le service public français et international. Auteur du premier plan de modernisation et d'équipement français, j’en ai assuré la mise en œuvre.","\"Les hommes ne voient la nécessité que dans la crise.\"","Initiateur de la CECA , on me surnomme le « père de l’Europe »."]
[22,"Kondratiev Nikolaï","1892 Vitchouga - Oblast de Moscou 1938 ","Economiste soviétique","Mon soutien à la nouvelle politique économique de Lénine qui visait à introduire une relative libéralisation afin de redynamiser l'économie soviétique ne m’a pas réussi. Victime des Grandes Purges de Staline, je suis mort fusillé au Goulag.","\"La notion de torture réside déjà dans le simple fait de garder en prison des détenus politiques…\"","Ma théorie des cycles économiques m’a rendu célèbre."]
[23,"von Hayek Friedrich","1899 Vienne - Frigourg-en-Brisgau 1992","Économiste et philosophe autrichien (Prix Nobel en 1974)","Je suis un partisan inconditionnel du libre marché. Je réfute les arguments avancés par Keynes pour sortir d'une crise. Vouloir rétablir le plein-emploi par une politique d’expansion monétaire fait courir le risque d’une envolée des prix. En 1947 j'ai fondé la Société du Mont-Pèlerin. ","\"La concurrence ne rendra pas la monnaie peu cher, car son attrait réside dans la préservation de sa  \"cherté\". ","L’inflation est «le mal économique absolu»."]
[24,"Hicks John","1904 Warwick - Brockley 1989","Économiste britannique (Prix Nobel 1972)","Fondateur du néokeynésianisme, je suis considéré, avec Samuelson, comme le « père » de la microéconomie traditionnelle. ","\"Je ne suis pas parti de Keynes: je suis parti de Pareto et de Hayek.\"","Connu pour ma formule \"IS/LM\" (Investments & savings / Liquidity &Money supply)"]
[25,"Leontief Wassily","1906 Munich - New-York 1999","Économiste américain d'origine russe. (Prix Nobel 1973)","Mes travaux sur l'analyse interindustrielle (tableaux entrées/sorties) sont utilisés aujourd'hui tant pour la planification que pour la comptabilité nationale. Il y a un paradoxe lorsqu'un pays fortement doté en capital financier exporte des biens intensifs en travail et non en capital. Le théorème d'Heckscher-Ohlin-Samuelson (HOS) est contredit !","\"Le rôle de l'homme en tant que facteur de production le plus important est appelé à diminuer.\"","Il y a un paradoxe (qui porte mon nom) lorsqu'un pays riche exporte des biens intensifs en travail. "]
[26,"Fourastié Jean ","1907 Saint-Bénin, Nièvre - Lot, 1990 ","Économiste français","Connu pour mes travaux sur les prix, la productivité et surtout le progrès technique. Selon moi, c'est là que réside la clef des mécanismes fondamentaux de l'économie (évolution des prix et de la rente, explication des crises et du chômage...).","\"La productivité est la mesure du progrès technique.\"","Connu  pour avoir été à l'origine de l'expression les « Trente Glorieuses » et du mot \"mercatique\"."]
[27,"Kaldor Nicholas","1908 Budapest - 1986 Cambridge","Economiste hongrois","Un des principaux auteurs du courant post-keynésien, théoricien des cycles économiques et conseiller de plusieurs gouvernements travaillistes. Je me distingue par ma critique virulente de la synthèse néoclassique, puis de la « contre-révolution » monétariste et de son application au Royaume-Uni sous les gouvernements de Margaret Thatcher.","\"Casser l’inflation se fait toujours au détriment de l’emploi.\"","Mon carré magique représente la croissance, l'emploi, la balance commerciale et les prix."]
[28,"Galbraith John Kenneth","1908 Iona Station, Ontario - Cambridge 2006","Économiste américain","Collaborateur de Roosevelt, ami et conseiller de Kennedy et de L. Johnson, j’ai élaboré mon corpus théorique dans un cadre aux tendances à la fois keynésiennes et surtout institutionnalismes. Pour expliquer la société de consommation, je démontre que « ce sont les entreprises qui imposent des produits aux consommateurs, et non l'inverse ». ","\"La seule fonction de la prévision économique, c’est de rendre l’astrologie respectable. \"","Ma notion de « filière inversée » démontre que la notion d'économie de marché n'a pas de sens."]
[29,"Friedman Milton","1912 New York - San Francisco 2006","Économiste américain. (Prix Nobel 1976)","Chef de l'école monétariste dite « de Chicago », je défends une politique stricte de contrôle de la croissance de la masse monétaire. Je remets en cause les politiques de relance keynésiennes qui ne peuvent que provoquer  l'inflation 'ce mal absolu'.","\"L’inflation est comme l’alcoolisme. Lorsqu’un homme se livre à une beuverie, le soir même cela lui fait du bien.\"","Les interventions de l’État perturbent l’économie de marché. Il faut libéraliser l'économie."]
[30,"Samuelson Paul Anthony","1915 Gary, Indiana - Massachusetts 2009","Économiste américain. (Prix Nobel 1970)","Avec Hicks je suis « le père » de la microéconomie. Le fonctionnement du commerce international de Ricardo (les avantages comparatifs) est invalidé par notre modèle HOS (Hecksher-Ohlin-S. ) qui explique pourquoi les économies se spécialisent. J'ai aussi donné mon nom à un \"oscillateur\" qui reprend l’effet multiplicateur keynésien et le principe de l’accélérateur.","\"Le profit est le sang du système économique. Mais le sang d’une personne peut être le cancer pour une autre.\"","C'est mon livre, \"L'Économique\" apprécié pour sa qualité de synthèse, qui a fait ma renommée."]
[31,"Tobin James","1918 Champaing, Illinois - New Haven 2002","Economistre américain (Prix Nobel 1981)","Partisan d’un libéralisme à visage humain, je n'ai jamais cessé de défendre le rôle de l’État. Je suis également à l’origine de la notion de ratio « Q » utilisé en économétrie pour permettre à une entreprise de faire un choix entre un investissement physique et un investissement financier.","\"Nous devrions consacrer une bonne partie de notre énergie  à trouver des moyens de réduire les inégalités.\"","Je suis connu pour ma taxe sur les transactions monétaires internationales."]
[32,"Klein Lawrence Robert ","1920 Omaha, Nebraska - Gladwyne 2013","Économiste américain. (Prix Nobel 1980)","Leader du projet « Brookings-SSRC», qui avait pour but de construire un modèle économétrique de prévision du développement de l'économie américaine à court terme. Plus tard, j'ai réalisé un modèle plus petit, le  « Wharton Econometric Forecasting Model » qui intègre des paramètres plus variés.","\"L'économiste ne peut pas scientifiquement s'attendre à avoir raison plus des deux tiers du temps.\"","J’ai contribué aux modèles de prévision éco. (prédiction des cycles entre autres)"]
[33,"Barre Raymond","1924 Saint-Denis, Réunion - Paris 2007","Économiste et homme politique français","Professeur d’université, j'ai occupé de hautes fonctions (Vice-président de la Commission européenne -  Premier ministre - Ministre de l'Économie et des Finances). J’ai œuvré pour une politique monétaire visant à réduire la pression de la monnaie sur les prix et une politique budgétaire stricte du fait de la hausse de la dette.","\"L’économie se venge toujours.\"","Plusieurs plans de politique monétaire européenne portent mon nom."]
[34,"Nash John Forbes","1928 Bluefiel, Virginie - New Jersey 2015","Économiste et mathématicien américain (Prix Nobel 1994)","Dans ma thèse sur les jeux non-coopératifs je montre que les agents ont des buts opposés alors que dans les jeux coopératifs les agents visent à trouver la meilleure solution en faisant coopérer plusieurs joueurs. Ce comportement est vérifié pour les firmes en situation de duopole ou lors d’enchères pour l’octroi d’un marché public.","\"Il n'est pas nécessaire d'être un mathématicien pour avoir une idée des chiffres.\"","Avec le \"dilemme du prisonnier\" je montre une situation d'équilibre qui porte nom nom."]
[35,"Sen Amartya","1933 Santiniketan","Économiste et philosophe indien (Prix Nobel 1998)","Spécialiste des questions de famine et de pauvreté, j'ai inspiré l'ONU pour  la création de l'Indice de Développement Humain (IDH). Cet indice évalue le niveau de santé, d'éducation et de ressources matérielles disponibles dans chaque pays. Les inégalités se mesurent sur la capacité de chacun à les convertir en \"libertés réelles\" que je nomme \"capabilités\".","\"Nous vivons dans un monde indivis où les riches ne peuvent plus ignorer les pauvres.\"","J'ai contribué à \"L'économie du bien-être\" et à la création de l'indicateur IDH."]
[36,"Lucas Robert Emerson","1937 Yakima, État de Washington","Économiste américain. (Prix Nobel 1995)","Défenseur du libéralisme, je suis à l'origine de la NEC « Nouvelle macroéconomie classique », qui veut fonder ses modèles sur les comportements individuels. Je me réclame donc de la théorie de l'équilibre général. Mes travaux montrent que les agents sont capables de s'adapter immédiatement à une politique budgétaire la rendant totalement inefficace.","\"Plus le taux d'inflation est élevé; plus la production est élevée et plus le taux de chômage est bas.\"","Les anticipations rationnelles ont transformé profondément l'analyse macro-économique."]
[37,"Yunus Muhammad","1940 Chittagong, Bangladesh","Entrepreneur et Économiste bangladais (Nobel de la paix 2005)","J'ai fondé la Grameen Bank et suis devenu ainsi un \"prêteur d'espoir\". Maintenant, près de 200 millions de personnes bénéficient de microcrédits.Les pauvres ne sont pas responsables de leur pauvreté. Ils ne sont ni des incapables ni des fainéants, mais des victimes de la société.Il faut donner à chacun la possibilité de devenir entrepreneur.","\" Les pauvres ne sont pas responsables de leur pauvreté. Ce ne sont pas des fainéants, mais des victimes.\"","Surnommé le « banquier des pauvres »  ou « l'apôtre du microcrédit »"]
[38,"Laffer Arthur","1940 Youngstown, Ohio","Économiste américain.","Je suis un ardent défenseur d'une politique de réduction des impôts. La fameuse courbe qui porte mon nom montre qu'une baisse des taux d'imposition peut générer une hausse des recettes fiscales. Ma théorie influença la politique économique des États-Unis et de certains pays européens dans les années 1980.","\"Trop d'impôt tue l'impôt.\"","La courbe qui porte mon nom montre qu'une baisse des impôts génère une hausse des recettes."]
[39,"Stiglitz Joseph","1943 Gary","Économistre américain (Prix Nobel 2001)","J’ai violemment critiqué le FMI et la Banque mondiale (économiste en chef). En imposant aux pays en développement des politiques libérales, on aggrave leurs situations. La hausse des inégalités et le poids de l'endettement des ménages agissent négativement sur la croissance. Je cherche à corriger les défauts du marché, pas à le détruire.","\"L'économie n'est pas un jeu à somme nulle. Nous pouvons restructurer la mondialisation au bénéfice de tous. \"","On me doit la théorie du salaire d'efficience."]
[40,"Piketty Thomas","1971 Clichy","Économiste français (Prix du meilleur jeune économiste)","J'affirme que la captation de la croissance par les plus riches est inquiétante. Les inégalités sont la caractéristique principale du capitalisme. Le reaganisme américain des années 1980  avec ses baisses d'impôts n'a pas dopé la croissance, mais a seulement enrichi les riches !","\"La Suisse doit davantage partager ses richesses.\"","Favorable à un revenu universel et à une hausse massive d'impôts sur les gros patrimoines."]
[41,{"$f":"\"\"","v":""},null,null,null,"  "," "]
[null,null,null,null,null,"  "," "]

{"sheet":"Portrait","index":2,"n_rows":45,"n_cols":50,"rows_kept":45,"cut":false,"hidden":true,"merged":[]}
[null,1,2,3,4,5,6,7,8,9,10,11,12,13,14,15,16,17,18,19,20,21,22,23,24,25,26,27,28,29,30,31,32,33,34,35,36,37,38,39,40,43,44,45,46,45,41,42,43,44]
[]
[]
[]
[null,null,null,null,null,null,null,null,null,null,null,null,null,null,null,null,null,null,null,null,null,null,null,null,null,null,null,null,null,null,null,null,null,null,null,null,null,null,null,null,null,"?","?"]
[null,"Gresham Thomas","Colbert Jean-Baptiste","Quesney François","Smith Adam","de Saint-Simon Henri","Malthus Thomas Robert","Say Jean-Baptiste","Ricardo David","de Sismondi Jean-Léonard","Bastiat Frédéric","Mill John Stuart","Proudhon Pierre-Joseph","Marx Karl","Walras Léon","Marshall Alfred","Pareto Vilfredo","Bernstein Eduard","Rist Charles","Keynes John Maynard","Schumpeter Joseph","Monnet Jean","Kondratiev Nikolaï","von Hayek Friedrich","Hicks John","Leontief Wassily","Fourastié Jean ","Kaldor Nicholas","Galbraith John Kenneth","Friedman Milton","Samuelson Paul Anthony","Tobin James","Klein Lawrence Robert ","Barre Raymond","Nash John Forbes","Sen Amartya","Lucas Robert Emerson","Yunus Muhammad","Laffer Arthur","Stiglitz Joseph","Piketty Thomas"]
[]
[null,null,null,null,null,null,null,null,null,null,null,null,null,null,"Valeur utilité"]
[]
[null,"Avec le cholestérol la mauvaise graisse chasse la bonne. Avec la monnaie c'est la même chose !","Plumer l'oie (ou le canard colvert) avec le moins de cris possible.","Pauvres paysans, pauvre royaume. Qu'est-ce ce négatif diagnostique docteur ?","La main invisible, ce mythe à damner. La somme des intérêts individuels amène à l'équilibre général.","Du travail obligatoire pour tous, si mon rêve s'exhausse.","Il est plus facile de les faire que de les nourrir mal tous !","L'offre est le moteur de la demande, la monnaie qu'un intermédiaire, tout le monde le sait !","Le marché du travail doit être ouvert à la concurrence et les pays se spécialiser. Ris car d'autres pensent le contraire !","Le problème ce ne sont pas les nouvelles machines, mais le partage des profits réalisés.","Avec l'État, tout le monde s'efforce de vivre aux dépens de tout le monde, comme en Corse !","Le raisonnement inductif dans la pensée économique des militants associationnistes"," La propriété c'est le vol peu ou prou.","Mettre fin à l'exploitation du travail par le capital. Ceci est ma marque spécifique.","C'est l'utilité qui fait la valeur d'un bien, pas le travail. Le prix assure l'équilibre général O/D.","La valeur par les facteurs de production et l'utilité marginale, voilà comme ça marche à l'École de Cambridge.","Je vais optimiser mes ressources et l'État par retour va augmenter mes impôts.","Il faut adapter le marxisme en berne à la réalité économique.","L'or est la moins mauvaise monnaie, sans risque et Bretten Woods ne veut pas le savoir.","Investissements publics pour le plein-emploi. Personne ne doit rester sur le quai, n'est-ce pas.","L'innovation est le moteur de la croissance, mais la surproduction amène la crise.","Père de l'Europe avec Schuman, Spaak et Gasperi je rêve d'une monnaie unique.","Avec le capitalisme, les phases de croissance (qu'on dramatise en l'estimant à 50 ans) sont suivies de dépressions.","Libre marché et moins d'États pour sauver nos libertés…aïe, aïe, aïe !","Le modèle X \"IS/LM\" détermine la stabilité de l'économie.","Le rôle des personnes est de plus en plus petit comme facteur de production. Les hontes !","Les 30 glorieuses c'est la période après les fours à style macabre.","Le carré magique, il n'y a qu'à le dorloter.","Les entreprises imposent leurs produits aux consommateurs, c'est la filière inversée et galbée.","L'École de Chicago et l'ultralibéralisme par un homme frit.","Les biens faits du commerce international ne sont pas garantis, même avec le SAMU !","Une taxe c'est trop bien pour réduire la spéculation.","Les idées de Keynes mises à jour avec des petits modèles économétriques.","Le frein à la dette publique est mon idée fixe. La barre à droite toute.","Le dilemme du prisonnier et les stratégies coopératives dans les prisons de Nashville.","L'indice de développement humain au service de l'économie du bien-être pour rester zen.","Les agents économiques sont intelligents et rationnels. La politique budgétaire n'est qu'une lucarne qui ne sert à rien.","Du microcrédit pour les pauvres dans son jus.","Trop d'impôt tue l'impôt… la belle affaire !","Selon la notion de salaire d'efficience, la productivité dépend d'un salaire stimulant.","La principale caractéristique du capitalisme c'est de créer des inégalités inquiétantes. Signé Picsous."]
[]
[]
[]
[]
[]
[]
[]
[]
[]
[]
[]
[]
[]
[]
[]
[]
[]
[]
[]
[]
[]
[]
[]
[]
[]
[]
[]
[]
[]
[]
["https://www.lafinancepourtous.com/decryptages/politiques-economiques/theories-economiques/fiches-economistes/"]
[]
["http://www.jutier.net/contenu/economi.htm"]
[]
["https://www.economie.gouv.fr/facileco/adam-smith"]